bitfinex-derivatives/quotes_BTCF0:USTF0_20260214
["timestamp","ask_amount","ask_price","bid_price","bid_amount"]
[1771075611929,0.41101334,69471.0,69451.0,0.15896]
[1771075612323,0.41101334,69469.0,69451.0,0.15896]
[1771075614024,0.41101334,69483.0,69461.0,0.014402]
[1771075614218,0.41101334,69481.0,69446.0,0.014406]
[1771075614423,0.41101334,69479.0,69447.0,0.01484]
[1771075614622,0.41101334,69477.0,69448.0,0.15896]
[1771075614825,0.41101334,69475.0,69449.0,0.01484]
[1771075615021,0.41101334,69473.0,69450.0,0.15896]
[1771075615321,0.41101334,69473.0,69451.0,0.01484]
[1771075615525,0.41101334,69471.0,69451.0,0.01484]
[1771075615725,0.41101334,69469.0,69451.0,0.01484]
[1771075615926,0.41101334,69467.0,69451.0,0.01484]
[1771075616231,0.41101334,69465.0,69451.0,0.01484]
[1771075616627,0.41101334,69465.0,69439.0,0.014407]
[1771075616830,0.41101334,69465.0,69440.0,0.15896]
[1771075617533,0.41101334,69463.0,69441.0,0.15896]
[1771075617827,0.41101334,69461.0,69429.0,0.41525022]
[1771075618033,0.41101334,69459.0,69430.0,0.15896]
[1771075618230,0.41101334,69457.0,69431.0,0.15896]
[1771075618830,0.41101334,69457.0,69428.0,0.014409]
[1771075619029,0.41101334,69457.0,69429.0,0.15896]
[1771075619532,0.41101334,69457.0,69430.0,0.14412]
[1771075619533,0.70993065,69456.0,69430.0,0.14412]
[1771075619731,0.41101334,69454.0,69424.0,0.01484]
[1771075619933,0.41101334,69452.0,69424.0,0.01484]
[1771075620128,0.41101334,69450.0,69424.0,0.01484]
[1771075620334,0.41101334,69448.0,69424.0,0.01484]
[1771075620531,0.31375731,69447.0,69424.0,0.01484]
[1771075620728,0.41101334,69446.0,69424.0,0.01484]
[1771075621525,0.42996746,69450.0,69425.0,0.39967888]
[1771075621729,0.001,69452.0,69441.0,0.014407]
[1771075621925,0.001,69446.0,69442.0,0.01484]
[1771075622234,0.16689,69464.0,69446.0,0.014406]
[1771075622431,0.01484,69462.0,69448.0,0.014405]
[1771075622640,0.01484,69462.0,69450.0,0.014405]
[1771075622932,0.16689,69464.0,69449.0,0.54379888]
[1771075623136,0.16689,69464.0,69450.0,0.014405]
[1771075623338,0.02277,69464.0,69449.0,0.54379888]
[1771075623635,0.02277,69464.0,69450.0,0.39967888]
[1771075623839,0.001,69452.0,69450.0,0.39967888]
[1771075624039,0.02277,69464.0,69450.0,0.39967888]
[1771075625536,0.45273746,69464.0,69442.0,0.39967888]
[1771075625740,0.45273746,69464.0,69423.0,0.01441]
[1771075625741,0.42996746,69462.0,69424.0,0.01441]
[1771075625935,0.42996746,69460.0,69426.0,0.01441]
[1771075626136,0.42996746,69458.0,69426.0,0.01441]
[1771075626639,0.42996746,69458.0,69427.0,0.01441]
[1771075627033,0.42996746,69458.0,69425.0,0.17337]
[1771075627236,0.42996746,69458.0,69425.0,0.15896]
[1771075628338,0.42996746,69456.0,69425.0,0.15896]
[1771075628540,0.42996746,69454.0,69425.0,0.17337]
[1771075628739,0.42996746,69454.0,69427.0,0.01441]
[1771075629039,0.42996746,69454.0,69430.0,0.014409]
[1771075629247,0.42996746,69454.0,69433.0,0.014408]
[1771075629444,0.42996746,69454.0,69434.0,0.014408]
[1771075629744,0.42996746,69454.0,69435.0,0.41451888]
[1771075629940,0.42996746,69454.0,69436.0,0.41408688]
[1771075630243,0.15896,69455.0,69438.0,0.014407]
[1771075630436,0.15896,69455.0,69439.0,0.01484]
[1771075630639,0.2034,69477.0,69439.0,0.01484]
[1771075630640,0.01484,69459.0,69442.0,0.014406]
[1771075630938,0.01484,69459.0,69443.0,0.15896]
[1771075631843,0.01484,69459.0,69443.0,0.173366]
[1771075632045,0.01484,69459.0,69444.0,0.39967888]
[1771075632238,0.01484,69459.0,69445.0,0.39967888]
[1771075632639,0.0148,69462.0,69443.0,0.173366]
[1771075633137,0.0148,69462.0,69444.0,0.014406]
[1771075633343,0.0148,69462.0,69443.0,0.57304488]
[1771075633948,0.012,69461.0,69444.0,0.014406]
[1771075634142,0.012,69461.0,69443.0,0.55863888]
[1771075634546,0.012,69461.0,69444.0,0.15892]
[1771075634842,0.012,69461.0,69446.0,0.39967888]
[1771075635047,0.012,69461.0,69450.0,0.39967888]
[1771075635245,0.012,69461.0,69451.0,0.41447888]
[1771075635542,0.0148,69465.0,69451.0,0.41447888]
[1771075635543,0.15892,69472.0,69453.0,0.39967888]
[1771075635746,0.15892,69472.0,69452.0,0.14412]
[1771075635747,0.42996746,69471.0,69452.0,0.14412]
[1771075636543,0.0148,69472.0,69454.0,0.39967888]
[1771075636852,0.0148,69472.0,69455.0,0.0148]
[1771075637036,0.29877001,69471.0,69441.0,0.014407]
[1771075637237,0.42996746,69469.0,69445.0,0.014406]
[1771075637440,0.42996746,69467.0,69446.0,0.0148]
[1771075637640,0.42996746,69465.0,69446.0,0.0148]
[1771075638243,0.0148,69473.0,69455.0,0.39967888]
[1771075638448,0.44476746,69473.0,69456.0,0.15892]
[1771075638747,0.57408746,69486.0,69464.0,0.39967888]
[1771075638946,0.44476746,69485.0,69465.0,0.15892]
[1771075639355,0.44476746,69485.0,69469.0,0.41407988]
[1771075639356,0.0148,69485.0,69469.0,0.41407988]
[1771075639647,0.0148,69485.0,69470.0,0.0148]
[1771075640442,0.14412,69486.0,69470.0,0.0148]
[1771075640747,0.14412,69486.0,69470.0,0.41447888]
[1771075641345,0.0148,69488.0,69472.0,0.41407888]
[1771075641545,0.0148,69488.0,69473.0,0.14408]
[1771075641746,0.0148,69488.0,69474.0,0.0148]
[1771075642051,0.68185709,69494.0,69475.0,0.39967888]
[1771075642052,0.09701393,69494.0,69475.0,0.39967888]
[1771075642248,0.09701393,69494.0,69474.0,0.0292]
[1771075642249,0.42996746,69494.0,69474.0,0.0148]
[1771075642551,0.42996746,69494.0,69475.0,0.0148]
[1771075642745,0.42996746,69492.0,69475.0,0.0148]
[1771075642945,0.42996746,69490.0,69475.0,0.0148]
[1771075643354,0.42996746,69490.0,69463.0,0.41408088]
[1771075643543,0.42996746,69490.0,69464.0,0.173282]
[1771075643745,0.42996746,69490.0,69465.0,0.014402]
[1771075644051,0.42996746,69490.0,69464.0,0.57296088]
[1771075644548,0.42996746,69490.0,69459.0,0.39967888]
[1771075644754,0.42996746,69489.0,69452.0,0.14408]
[1771075645052,0.42996746,69487.0,69453.0,0.0148]
[1771075645249,0.42996746,69485.0,69453.0,0.0148]
[1771075646052,0.42996746,69483.0,69448.0,0.39967888]
[1771075646257,0.42996746,69481.0,69449.0,0.15888]
[1771075646441,0.42996746,69479.0,69450.0,0.0148]
[1771075648641,0.42996746,69477.0,69450.0,0.029205]
[1771075648846,0.42996746,69477.0,69451.0,0.014405]
[1771075649349,0.42996746,69477.0,69450.0,0.029205]
[1771075649957,0.42996746,69477.0,69450.0,0.41447888]
[1771075651655,0.42996746,69477.0,69455.0,0.43366236]
[1771075651852,0.42996746,69477.0,69456.0,0.0148]
[1771075652545,0.42996746,69477.0,69457.0,0.14408]
[1771075653754,0.42996746,69477.0,69456.0,0.0148]
[1771075654054,0.38447493,69475.0,69450.0,0.01464]
[1771075654258,0.38447493,69473.0,69450.0,0.01464]
[1771075654953,0.38447493,69473.0,69444.0,0.014406]
[1771075655152,0.38447493,69471.0,69445.0,0.15888]
[1771075655355,0.38447493,69469.0,69445.0,0.15888]
[1771075655551,0.38447493,69469.0,69444.0,0.014406]
[1771075655756,0.38447493,69469.0,69445.0,0.15888]
[1771075657954,0.38447493,69469.0,69444.0,0.014406]
[1771075658155,0.38447493,69469.0,69445.0,0.15888]
[1771075659659,0.38447493,69469.0,69445.0,0.173286]
[1771075660160,0.38447493,69469.0,69445.0,0.15888]
[1771075660857,0.38447493,69469.0,69446.0,0.15888]
[1771075661554,0.38447493,69469.0,69445.0,0.014406]
[1771075661555,0.38447493,69469.0,69447.0,0.0148]
[1771075661859,0.38447493,69469.0,69447.0,0.15888]
[1771075662562,0.38447493,69469.0,69448.0,0.0148]
[1771075667957,0.38447493,69469.0,69442.0,0.39281667]
[1771075668258,0.38447493,69469.0,69443.0,0.15888]
[1771075669366,0.38447493,69469.0,69444.0,0.15888]
[1771075670464,0.0148,69470.0,69448.0,0.40722167]
[1771075670664,0.0148,69470.0,69451.0,0.39281667]
[1771075670858,0.0148,69470.0,69453.0,0.39281667]
[1771075671066,0.42397551,69470.0,69452.0,0.0148]
[1771075671260,0.42397551,69470.0,69437.0,0.00017427]
[1771075671261,0.29710341,69469.0,69451.0,0.0148]
[1771075671466,0.40917551,69468.0,69451.0,0.0148]
[1771075671667,0.0148,69467.0,69451.0,0.0148]
[1771075671866,0.0148,69467.0,69451.0,0.40761667]
[1771075672170,0.0148,69467.0,69451.0,0.0148]
[1771075672365,0.0040043,69467.0,69451.0,0.0148]
[1771075673561,0.41317981,69467.0,69443.0,0.014406]
[1771075673760,0.41317981,69467.0,69444.0,0.55169667]
[1771075674668,0.41317981,69467.0,69444.0,0.56610267]
[1771075674870,0.40917551,69465.0,69444.0,0.56610267]
[1771075675068,0.0148,69464.0,69445.0,0.39281667]
[1771075675272,0.0148,69464.0,69447.0,0.39281667]
[1771075675461,0.0148,69464.0,69448.0,0.40761667]
[1771075680073,0.0148,69464.0,69444.0,0.39281667]
[1771075680375,0.42397551,69464.0,69445.0,0.55169667]
[1771075680878,0.42397551,69464.0,69446.0,0.39281667]
[1771075682877,0.0148,69464.0,69449.0,0.41929933]
[1771075683064,0.0148,69464.0,69450.0,0.029205]
[1771075683262,0.0148,69464.0,69446.0,0.40489433]
[1771075683263,0.38612274,69463.0,69446.0,0.40489433]
[1771075683466,0.0148,69464.0,69447.0,0.41969433]
[1771075685576,0.0148,69464.0,69448.0,0.0148]
[1771075686373,0.0148,69464.0,69440.0,0.014407]
[1771075686374,0.38612274,69462.0,69438.0,0.40489433]
[1771075686680,0.38612274,69460.0,69439.0,0.15888]
[1771075686975,0.38612274,69458.0,69439.0,0.15888]
[1771075687769,0.38612274,69458.0,69439.0,0.56377433]
[1771075687977,0.38612274,69458.0,69440.0,0.40489433]
[1771075688875,0.68125102,69457.0,69437.0,0.00017427]
[1771075689080,0.38612274,69455.0,69437.0,0.00017427]
[1771075689275,0.38612274,69453.0,69437.0,0.00017427]
[1771075689469,0.38612274,69451.0,69438.0,0.01476]
[1771075689673,0.38612274,69449.0,69438.0,0.01476]
[1771075690176,0.38612274,69449.0,69437.0,0.00017427]
[1771075692375,0.38612274,69449.0,69421.0,0.40489433]
[1771075692573,0.15884,69450.0,69422.0,0.15884]
[1771075692574,0.38612274,69447.0,69422.0,0.15884]
[1771075692780,0.15884,69450.0,69422.0,0.15884]
[1771075692781,0.38612274,69445.0,69422.0,0.15884]
[1771075692971,0.38612274,69443.0,69422.0,0.15884]
[1771075693172,0.38612274,69441.0,69423.0,0.15884]
[1771075693373,0.01489394,69440.0,69424.0,0.01476]
[1771075693875,0.38612274,69439.0,69423.0,0.14408]
[1771075694071,0.01489394,69440.0,69423.0,0.14408]
[1771075694468,0.40101668,69440.0,69423.0,0.14408]
[1771075694674,0.40101668,69440.0,69418.0,0.40489433]
[1771075694878,0.40101668,69440.0,69420.0,0.40489433]
[1771075695268,0.40101668,69440.0,69421.0,0.014411]
[1771075695580,0.40101668,69440.0,69421.0,0.40489433]
[1771075696281,0.38612274,69438.0,69413.0,0.01476]
[1771075696481,0.38612274,69436.0,69411.0,0.40489433]
[1771075696674,0.38612274,69436.0,69413.0,0.40489433]
[1771075696872,0.38612274,69436.0,69414.0,0.01476]
[1771075697672,0.38612274,69436.0,69396.0,0.014416]
[1771075697876,0.38612274,69429.0,69392.0,0.40189433]
[1771075698175,0.38612274,69427.0,69393.0,0.01476]
[1771075698475,0.38612274,69425.0,69393.0,0.01476]
[1771075698678,0.38612274,69423.0,69394.0,0.01476]
[1771075698878,0.38612274,69421.0,69395.0,0.01476]
[1771075699076,0.38612274,69419.0,69395.0,0.01476]
[1771075699383,0.38612274,69417.0,69395.0,0.01476]
[1771075699584,0.38612274,69415.0,69395.0,0.01476]
[1771075699781,0.38612274,69409.0,69376.0,0.40489433]
[1771075699984,0.38612274,69407.0,69378.0,0.40489433]
[1771075700284,0.38612274,69405.0,69378.0,0.41931433]
[1771075700472,0.38612274,69403.0,69378.0,0.41931433]
[1771075700676,0.38612274,69401.0,69379.0,0.14412]
[1771075700877,0.38612274,69399.0,69379.0,0.14412]
[1771075701078,0.40088274,69398.0,69379.0,0.14412]
[1771075701481,0.40088274,69398.0,69374.0,0.40489433]
[1771075701682,0.40088274,69398.0,69375.0,0.1733]
[1771075702080,0.40088274,69398.0,69375.0,0.15888]
[1771075702284,0.38612274,69396.0,69375.0,0.15888]
[1771075702485,0.38612274,69394.0,69371.0,0.41931533]
[1771075702675,0.38612274,69394.0,69371.0,0.40489433]
[1771075702879,0.38612274,69392.0,69372.0,0.15892]
[1771075703083,0.00013725,69393.0,69377.0,0.41931433]
[1771075703084,0.15892,69391.0,69377.0,0.41931433]
[1771075703280,0.15892,69391.0,69373.0,0.01476]
[1771075703478,0.15892,69391.0,69373.0,0.41965433]
[1771075703679,0.15892,69391.0,69374.0,0.41965433]
[1771075703882,0.15892,69391.0,69374.0,0.56381433]
[1771075704079,0.15892,69391.0,69374.0,0.40489433]
[1771075704287,0.15892,69391.0,69375.0,0.15892]
[1771075704586,0.15892,69391.0,69375.0,0.56381433]
[1771075704781,0.15892,69391.0,69372.0,0.40489433]
[1771075704982,0.54504274,69391.0,69373.0,0.15892]
[1771075705285,0.38612274,69390.0,69373.0,0.15892]
[1771075706080,0.54504274,69391.0,69366.0,0.014422]
[1771075706279,0.54504274,69391.0,59444.0,0.05142381]
[1771075706280,0.38612274,69372.0,69342.0,0.40489433]
[1771075706483,0.38112274,69370.0,69340.0,0.01476]
[1771075706683,0.38112274,69370.0,69327.0,0.40489433]
[1771075706979,0.38112274,69370.0,69313.0,0.00072137]
[1771075706980,0.38612274,69369.0,69335.0,0.40489433]
[1771075707181,0.38612274,69367.0,69336.0,0.56381433]
[1771075707481,0.38612274,69365.0,69336.0,0.56381433]
[1771075707682,0.38612274,69363.0,69336.0,0.56381433]
[1771075707881,0.38612274,69361.0,69331.0,0.40489433]
[1771075708089,0.38612274,69359.0,69332.0,0.15896]
[1771075708381,0.38612274,69357.0,69333.0,0.01476]
[1771075708582,0.38612274,69355.0,69333.0,0.01476]
[1771075708783,0.38612274,69353.0,69333.0,0.01476]
[1771075709086,0.38612274,69351.0,69333.0,0.01476]
[1771075709589,0.38612274,69351.0,69309.0,0.57684]
[1771075709590,0.38612274,69342.0,69290.0,0.40489433]
[1771075709780,0.38612274,69329.0,69289.0,0.1442]
[1771075709980,0.38612274,69319.0,69290.0,0.01476]
[1771075710191,0.38612274,69317.0,69290.0,0.01476]
[1771075710390,0.38612274,69315.0,69290.0,0.01476]
[1771075710595,0.40088274,69314.0,69290.0,0.01476]
[1771075710778,0.38622579,69313.0,69290.0,0.40489433]
[1771075711089,0.38622579,69313.0,69291.0,0.159]
[1771075711281,0.38622579,69313.0,69292.0,0.14424]
[1771075711787,0.38622579,69313.0,69293.0,0.37333922]
[1771075711788,0.00010305,69313.0,69293.0,0.37333922]
[1771075713288,0.01476,69319.0,69297.0,0.37333922]
[1771075713487,0.40784521,69319.0,69298.0,0.01476]
[1771075713692,0.40784521,69319.0,69298.0,0.15904]
[1771075714083,0.01476,69319.0,69299.0,0.37333922]
[1771075714387,0.39327002,69318.0,69284.0,0.37333922]
[1771075714585,0.39327002,69318.0,69293.0,0.37333922]
[1771075714786,0.39327002,69318.0,69294.0,0.15908]
[1771075715989,0.00018481,69318.0,69295.0,0.37333922]
[1771075717191,0.39327002,69318.0,69295.0,0.37333922]
[1771075717398,0.00018481,69318.0,69297.0,0.37333922]
[1771075717588,0.14424,69324.0,69285.0,0.014439]
[1771075717589,0.14424,69324.0,69304.0,0.37333922]
[1771075717889,0.14424,69324.0,69306.0,0.37333922]
[1771075718188,0.14424,69324.0,69308.0,0.37333922]
[1771075718390,0.0148,69327.0,69309.0,0.38813922]
[1771075718691,0.00015871,69326.0,69309.0,0.38813922]
[1771075719087,0.39308521,69325.0,69310.0,0.0148]
[1771075719392,0.00015871,69326.0,69310.0,0.15912]
[1771075719798,0.00015871,69326.0,69311.0,0.37333922]
[1771075721394,0.00015871,69326.0,69310.0,0.15912]
[1771075722692,0.36268471,69344.0,69322.0,0.36496328]
[1771075722988,0.14432,69342.0,69323.0,0.0148]
[1771075723187,0.14432,69342.0,69327.0,0.37939328]
[1771075723387,0.14432,69342.0,69330.0,0.36496328]
[1771075723783,0.14436,69351.0,69330.0,0.36496328]
[1771075723982,0.0148,69350.0,69332.0,0.36496328]
[1771075724290,0.0148,69350.0,69333.0,0.36496328]
[1771075724488,0.0148,69350.0,69334.0,0.15916]
[1771075724985,0.0148,69350.0,69335.0,0.36496328]
[1771075725585,0.14436,69351.0,69335.0,0.36496328]
[1771075726591,0.14436,69359.0,69335.0,0.36496328]
[1771075726893,0.37748471,69358.0,69335.0,0.36496328]
[1771075727596,0.37748471,69358.0,69336.0,0.0148]
[1771075728692,0.37748471,69358.0,69326.0,0.14432]
[1771075728693,0.36268471,69357.0,69326.0,0.14432]
[1771075728993,0.36268471,69357.0,69327.0,0.0148]
[1771075729194,0.36268471,69357.0,69317.0,0.36496328]
[1771075729490,0.36268471,69349.0,69318.0,0.15908]
[1771075729692,0.14574478,69350.0,69318.0,0.15908]
[1771075729693,0.36268471,69347.0,69319.0,0.14432]
[1771075730088,0.36268471,69347.0,69310.0,0.37939728]
[1771075730089,0.36268471,69347.0,69310.0,0.36496328]
[1771075730289,0.36268471,69347.0,69317.0,0.14432]
[1771075730491,0.36268471,69347.0,69318.0,0.01476]
[1771075730693,0.36268471,69347.0,69306.0,0.36496328]
[1771075730893,0.36268471,69347.0,69310.0,0.36496328]
[1771075731094,0.36368471,69347.0,69312.0,0.36496328]
[1771075731396,0.36368471,69347.0,69311.0,0.52404328]
[1771075731797,0.28956698,69346.0,69311.0,0.52404328]
[1771075731996,0.36268471,69339.0,69291.0,0.36496328]
[1771075732192,0.14574478,69340.0,69295.0,0.36496328]
[1771075732193,0.36268471,69337.0,69295.0,0.36496328]
[1771075732496,0.44897377,69338.0,69299.0,0.014436]
[1771075732497,0.36268471,69335.0,69299.0,0.014436]
[1771075732699,0.36268471,69333.0,69300.0,0.029196]
[1771075733098,0.36268471,69333.0,69300.0,0.39415928]
[1771075733488,0.36268471,69333.0,69300.0,0.37972328]
[1771075733689,0.36268471,69333.0,69302.0,0.36496328]
[1771075734001,0.36268471,69333.0,69304.0,0.36496328]
[1771075734188,0.36268471,69331.0,69304.0,0.14436]
[1771075734392,0.36268471,69329.0,69304.0,0.14436]
[1771075735400,0.36268471,69329.0,69305.0,0.36496328]
[1771075735599,0.36268471,69329.0,69306.0,0.01476]
[1771075735798,0.36268471,69329.0,69306.0,0.37972328]
[1771075736296,0.29137627,69328.0,69306.0,0.37972328]
[1771075736494,0.29137627,69327.0,69306.0,0.37972328]
[1771075736693,0.30613627,69326.0,69306.0,0.37972328]
[1771075736897,0.01476,69326.0,69306.0,0.37972328]
[1771075737201,0.29146695,69325.0,69306.0,0.37972328]
[1771075737500,0.01476,69326.0,69306.0,0.37972328]
[1771075738098,0.29155088,69325.0,69306.0,0.37972328]
[1771075738300,0.14436,69330.0,69308.0,0.36496328]
[1771075738496,0.14436,69330.0,69306.0,0.01476]
[1771075738497,0.30630052,69329.0,69310.0,0.36496328]
[1771075738700,0.29154052,69328.0,69310.0,0.36496328]
[1771075739901,0.29154052,69328.0,69312.0,0.36496328]
[1771075741196,0.29154052,69327.0,69312.0,0.36496328]
[1771075741402,0.29154052,69326.0,69312.0,0.36496328]
[1771075741607,0.14436,69330.0,69312.0,0.36496328]
[1771075741806,0.29171433,69329.0,69312.0,0.36496328]
[1771075742107,0.29171433,69328.0,69312.0,0.36496328]
[1771075742407,0.01476,69333.0,69314.0,0.36012929]
[1771075742710,0.29128557,69332.0,69316.0,0.36012929]
[1771075742903,0.29128557,69331.0,69316.0,0.37456229]
[1771075743103,0.14436,69338.0,69319.0,0.37456129]
[1771075743310,0.29129085,69337.0,69321.0,0.36012929]
[1771075743604,0.29129085,69336.0,69321.0,0.36012929]
[1771075743800,0.14436,69338.0,69321.0,0.36012929]
[1771075744110,0.29128039,69337.0,69321.0,0.36012929]
[1771075744303,0.29128039,69336.0,69321.0,0.36012929]
[1771075744503,0.36936777,69348.0,69320.0,0.15912]
[1771075744504,0.08728896,69335.0,69324.0,0.36012929]
[1771075744703,0.14436,69347.0,69326.0,0.36012929]
[1771075744903,0.14436,69347.0,69328.0,0.36012929]
[1771075745108,0.14436,69347.0,69330.0,0.36012929]
[1771075745410,0.57276777,69352.0,69330.0,0.36012929]
[1771075745411,0.01476,69350.0,69330.0,0.36012929]
[1771075746808,0.00396431,69350.0,69330.0,0.36012929]
[1771075747506,0.00396431,69350.0,69330.0,0.37455929]
[1771075747811,0.21816,69352.0,69333.0,0.36012929]
[1771075748111,0.43064525,69367.0,69338.0,0.36012929]
[1771075748112,0.36936777,69361.0,69338.0,0.36012929]
[1771075748404,0.01476,69360.0,69340.0,0.36012929]
[1771075748605,0.01476,69360.0,69342.0,0.36012929]
[1771075750103,0.01476,69360.0,69345.0,0.36012929]
[1771075750304,0.01476,69360.0,69346.0,0.37488929]
[1771075750501,0.36936777,69378.0,69353.0,0.014425]
[1771075750706,0.36936777,69378.0,69355.0,0.36012929]
[1771075750911,0.36936777,69378.0,69356.0,0.14436]
[1771075751210,0.36936777,69378.0,69357.0,0.01476]
[1771075751511,0.36936777,69376.0,69357.0,0.01476]
[1771075751710,0.01476,69377.0,69357.0,0.37488929]
[1771075752300,0.01476,69377.0,69359.0,0.37455329]
[1771075752500,0.01476,69379.0,69361.0,0.36012929]
[1771075753107,0.38412777,69379.0,69360.0,0.01476]
[1771075754310,0.38412777,69379.0,69360.0,0.37488929]
[1771075755404,0.38412777,69379.0,69356.0,0.14436]
[1771075755405,0.38412777,69379.0,69357.0,0.01476]
[1771075755605,0.38412777,69379.0,69358.0,0.01476]
[1771075756409,0.38412777,69379.0,69349.0,0.36012929]
[1771075756617,0.38412777,69379.0,69344.0,0.014427]
[1771075756618,0.36936777,69377.0,69351.0,0.36012929]
[1771075756810,0.36936777,69375.0,69351.0,0.36012929]
[1771075757314,0.36936777,69375.0,69352.0,0.15908]
[1771075757910,0.36936777,69375.0,69352.0,0.51920929]
[1771075759114,0.36936777,69375.0,69353.0,0.36012929]
[1771075760515,0.36936777,69375.0,69355.0,0.36012929]
[1771075760723,0.36936777,69375.0,69357.0,0.36012929]
[1771075760921,0.15908,69376.0,69359.0,0.36012929]
[1771075762517,0.12245418,69379.0,69359.0,0.36012929]
[1771075762718,0.01476,69379.0,69359.0,0.36012929]
[1771075763515,0.01476,69381.0,69359.0,0.36012929]
[1771075763717,0.38412777,69381.0,69359.0,0.36012929]
[1771075766316,0.38412777,69381.0,69356.0,0.14432]
[1771075766619,0.38412777,69381.0,69330.0,0.12190681]
[1771075766620,0.36936777,69379.0,69348.0,0.01476]
[1771075766824,0.36936777,69377.0,69348.0,0.01476]
[1771075767026,0.36936777,69375.0,69348.0,0.01476]
[1771075767325,0.36936777,69373.0,69348.0,0.01476]
[1771075767527,0.36936777,69371.0,69339.0,0.36012929]
[1771075767731,0.36936777,69369.0,69340.0,0.15904]
[1771075767925,0.36936777,69367.0,69340.0,0.51916929]
[1771075768123,0.36936777,69365.0,69340.0,0.51916929]
[1771075768323,0.36936777,69365.0,69340.0,0.36012929]
[1771075768514,0.36936777,69365.0,69341.0,0.51916929]
[1771075770314,0.36936777,69365.0,69342.0,0.36012929]
[1771075770627,0.36936777,69365.0,69323.0,0.36012929]
[1771075770925,0.36936777,69339.0,69308.0,0.36012929]
[1771075771114,0.33306744,69337.0,69309.0,0.01476]
[1771075771319,0.33306744,69335.0,69309.0,0.01476]
[1771075771514,0.33306744,69333.0,69308.0,0.36012929]
[1771075771733,0.33306744,69333.0,69309.0,0.01476]
[1771075771929,0.33306744,69333.0,69310.0,0.14432]
[1771075772531,0.33306744,69333.0,69311.0,0.01476]
[1771075773428,0.01476,69334.0,69314.0,0.3546648]
[1771075773727,0.01476,69334.0,69315.0,0.3694248]
[1771075776131,0.01476,69334.0,69318.0,0.3546648]
[1771075776333,0.34782744,69334.0,69304.0,0.3546648]
[1771075776631,0.34782744,69334.0,69307.0,0.01476]
[1771075778434,0.34782744,69334.0,69308.0,0.01476]
[1771075779241,0.34882744,69334.0,69308.0,0.01476]
[1771075780040,0.34782744,69334.0,69309.0,0.01476]
[1771075780236,0.34782744,69334.0,69306.0,0.00014615]
[1771075780442,0.34782744,69334.0,69307.0,0.15912]
[1771075782448,0.34782744,69334.0,69308.0,0.34467753]
[1771075783346,0.34782744,69334.0,69310.0,0.34467753]
[1771075783554,0.34782744,69334.0,69311.0,0.01476]
[1771075784352,0.34782744,69334.0,69312.0,0.01476]
[1771075784942,0.34782744,69334.0,69312.0,0.35943753]
[1771075785146,0.34782744,69334.0,69314.0,0.34467753]
[1771075785553,0.34782744,69334.0,69315.0,0.15912]
[1771075786449,0.34782744,69334.0,69315.0,0.50379753]
[1771075786659,0.01476,69334.0,69316.0,0.35911053]
[1771075786956,0.01476,69334.0,69316.0,0.34467753]
[1771075788154,0.36553999,69334.0,69316.0,0.34467753]
[1771075789258,0.36553999,69334.0,69317.0,0.15912]
[1771075789753,0.36553999,69334.0,69321.0,0.34467753]
[1771075789754,0.01476,69334.0,69321.0,0.34467753]
[1771075789959,0.01476,69334.0,69322.0,0.01476]
[1771075790860,0.14597688,69337.0,69322.0,0.35943753]
[1771075791159,0.14597688,69337.0,69323.0,0.15912]
[1771075791357,0.14597688,69337.0,69323.0,0.50379753]
[1771075791554,0.14597688,69337.0,69324.0,0.34467753]
[1771075791956,0.01476,69337.0,69325.0,0.34467753]
[1771075792157,0.01476,69337.0,69326.0,0.01476]
[1771075792658,0.01476,69337.0,69326.0,0.35943753]
[1771075793262,0.01476,69337.0,69326.0,0.01476]
[1771075793659,0.01476,69337.0,69322.0,0.34467753]
[1771075793959,0.01476,69337.0,69323.0,0.15912]
[1771075794961,0.01476,69337.0,69323.0,0.50379753]
[1771075795461,0.01476,69337.0,69323.0,0.51822853]
[1771075795762,0.01476,69337.0,69324.0,0.34467753]
[1771075796455,0.14428,69338.0,69324.0,0.34467753]
[1771075797357,0.14428,69338.0,69325.0,0.01476]
[1771075797662,0.14428,69338.0,69325.0,0.15912]
[1771075797859,0.14428,69338.0,69325.0,0.50379753]
[1771075798058,0.35077999,69337.0,69310.0,0.34467753]
[1771075798259,0.35077999,69335.0,69311.0,0.01476]
[1771075798463,0.35077999,69333.0,69311.0,0.01476]
[1771075798767,0.35077999,69331.0,69311.0,0.01476]
[1771075798957,0.35077999,69329.0,69312.0,0.01476]
[1771075799158,0.35077999,69327.0,69313.0,0.01476]
[1771075799363,0.28069977,69326.0,69313.0,0.01476]
[1771075800464,0.63147976,69326.0,69313.0,0.01476]
[1771075800668,0.28069977,69325.0,69313.0,0.01476]
[1771075800860,0.01476,69324.0,69313.0,0.01476]
[1771075801164,0.28069977,69323.0,69313.0,0.01476]
[1771075801362,0.28069977,69323.0,69307.0,0.34467753]
[1771075801665,0.28069977,69323.0,69308.0,0.15912]
[1771075802365,0.28069977,69323.0,69306.0,0.01458115]
[1771075802366,0.34977232,69322.0,69306.0,0.00014615]
[1771075802665,0.34977232,69320.0,69309.0,0.01476]
[1771075802863,0.29545977,69319.0,69309.0,0.01476]
[1771075803068,0.28069977,69318.0,69309.0,0.01476]
[1771075803564,0.01476,69319.0,69309.0,0.01476]
[1771075804067,0.14444915,69319.0,69309.0,0.01476]
[1771075804254,0.28134426,69318.0,69309.0,0.01476]
[1771075804560,0.14444915,69319.0,69309.0,0.01476]
[1771075806167,0.01476,69319.0,69309.0,0.01476]
[1771075808164,0.12349043,69322.0,69314.0,0.3296322]
[1771075808764,0.12349043,69322.0,69314.0,0.01476]
[1771075814568,0.12349043,69322.0,69313.0,0.01472]
[1771075814763,0.14436,69335.0,69320.0,0.3440642]
[1771075814966,0.01472,69334.0,69321.0,0.029151]
[1771075815168,0.01472,69334.0,69321.0,0.3587832]
[1771075815361,0.01472,69334.0,69321.0,0.3443522]
[1771075815563,0.14436,69335.0,69323.0,0.014431]
[1771075815763,0.14436,69335.0,69322.0,0.3296322]
[1771075815971,0.14436,69335.0,69322.0,0.3440632]
[1771075816269,0.14436,69335.0,69324.0,0.3296322]
[1771075816667,0.14436,69335.0,69325.0,0.014431]
[1771075816871,0.01472,69336.0,69326.0,0.01472]
[1771075817074,0.01472,69338.0,69326.0,0.01472]
[1771075817369,0.34977232,69365.0,69345.0,0.3296322]
[1771075817573,0.28103542,69364.0,69348.0,0.014426]
[1771075817774,0.34977232,69369.0,69352.0,0.3440572]
[1771075817978,0.01472,69370.0,69357.0,0.3296322]
[1771075818169,0.01472,69370.0,69358.0,0.029144]